[Event "Titled Tuesday Blitz July 18 Late 2023"]
[White "Vifleemskaia, Svetlana"]
[Black "JERO-8914"]
[WhiteFideId "4129490"]
[WhiteElo "2359"]
[BlackElo "2504"]
[Result "1/2-1/2"]
[Round "11"]
[TimeControl "180+2"]
[Date "2023.07.18"]
[WhiteClock "0:00:14"]
[BlackClock "0:00:19"]
[Board "50"]

1. d4 {[%clk 0:03:00]}  Nf6 {[%clk 0:02:58]} 2. c4 {[%clk 0:02:59]}  e6 {[%clk 0:02:58]} 3. Nc3 {[%clk 0:02:58]}  c5 {[%clk 0:02:50]} 4. d5 {[%clk 0:02:58]}  exd5 {[%clk 0:02:50]} 5. cxd5 {[%clk 0:02:59]}  d6 {[%clk 0:02:50]} 6. e4 {[%clk 0:02:56]}  g6 {[%clk 0:02:45]} 7. Nge2 {[%clk 0:02:54]}  Bg7 {[%clk 0:02:45]} 8. Ng3 {[%clk 0:02:54]}  O-O {[%clk 0:02:45]} 9. Be2 {[%clk 0:02:54]}  Re8 {[%clk 0:02:38]} 10. O-O {[%clk 0:02:53]}  a6 {[%clk 0:02:38]} 11. a4 {[%clk 0:02:52]}  Qc7 {[%clk 0:02:36]} 12. Bf4 {[%clk 0:02:50]}  Nbd7 {[%clk 0:02:32]} 13. Qd2 {[%clk 0:02:47]}  Rb8 {[%clk 0:02:30]} 14. Rfc1 {[%clk 0:02:40]}  Ne5 {[%clk 0:02:25]} 15. Ra3 {[%clk 0:02:33]}  h5 {[%clk 0:02:19]} 16. h3 {[%clk 0:02:23]}  Qe7 {[%clk 0:02:09]} 17. Bg5 {[%clk 0:02:16]}  Qf8 {[%clk 0:01:59]} 18. Re1 {[%clk 0:02:07]}  Nh7 {[%clk 0:01:55]} 19. Bf4 {[%clk 0:02:04]}  h4 {[%clk 0:01:50]} 20. Nf1 {[%clk 0:02:03]}  f5 {[%clk 0:01:44]} 21. f3 {[%clk 0:01:39]}  Qf6 {[%clk 0:01:35]} 22. exf5 {[%clk 0:01:27]}  g5 {[%clk 0:01:34]} 23. Ne4 {[%clk 0:01:18]}  Qd8 {[%clk 0:00:56]} 24. Bxg5 {[%clk 0:01:00]}  Nxg5 {[%clk 0:00:55]} 25. Qxg5 {[%clk 0:00:55]}  Qxg5 {[%clk 0:00:52]} 26. Nxg5 {[%clk 0:00:56]}  Bxf5 {[%clk 0:00:53]} 27. Ne6 {[%clk 0:00:49]}  Bxe6 {[%clk 0:00:41]} 28. dxe6 {[%clk 0:00:48]}  Rxe6 {[%clk 0:00:35]} 29. Ne3 {[%clk 0:00:36]}  Rbe8 {[%clk 0:00:30]} 30. Nf5 {[%clk 0:00:33]}  Nxf3+ {[%clk 0:00:19]} 31. Rxf3 {[%clk 0:00:31]}  Rxe2 {[%clk 0:00:20]} 32. Rxe2 {[%clk 0:00:30]}  Rxe2 {[%clk 0:00:19]} 33. Nxg7 {[%clk 0:00:28]}  Kxg7 {[%clk 0:00:20]} 34. Rd3 {[%clk 0:00:24]}  Re6 {[%clk 0:00:20]} 35. Kf2 {[%clk 0:00:22]}  Kf6 {[%clk 0:00:19]} 36. Kf3 {[%clk 0:00:21]}  Ke7 {[%clk 0:00:20]} 37. Rd5 {[%clk 0:00:19]}  b5 {[%clk 0:00:19]} 38. axb5 {[%clk 0:00:19]}  axb5 {[%clk 0:00:20]} 39. Rh5 {[%clk 0:00:19]}  Rf6+ {[%clk 0:00:19]} 40. Ke3 {[%clk 0:00:18]}  Rg6 {[%clk 0:00:19]} 41. Kf2 {[%clk 0:00:15]}  Rf6+ {[%clk 0:00:19]} 42. Ke3 {[%clk 0:00:14]}  Re6+ {[%clk 0:00:20]} 43. Kf3 {[%clk 0:00:14]}  Rf6+ {[%clk 0:00:19]} 44. Ke3 {[%clk 0:00:14]} 1/2-1/2


[Site "https://www.chess.com"]

[Event "Titled Tuesday Blitz July 18 Late 2023"]
[White "Hnydiuk, Aleksander"]
[Black "Troff, Kayden"]
[WhiteFideId "1109057"]
[BlackFideId "2047896"]
[WhiteElo "2506"]
[BlackElo "2758"]
[Result "0-1"]
[Round "11"]
[TimeControl "180+2"]
[Date "2023.07.18"]
[WhiteClock "0:00:51"]
[BlackClock "0:02:21"]
[Board "51"]

1. d4 {[%clk 0:03:00]}  Nf6 {[%clk 0:02:59]} 2. c4 {[%clk 0:03:00]}  g6 {[%clk 0:02:59]} 3. f3 {[%clk 0:02:58]}  Nh5 {[%clk 0:02:57]} 4. g4 {[%clk 0:02:48]}  e5 {[%clk 0:02:57]} 5. gxh5 {[%clk 0:02:25]}  Bb4+ {[%clk 0:02:48]} 6. Kf2 {[%clk 0:02:13]}  Qh4+ {[%clk 0:02:48]} 7. Kg2 {[%clk 0:02:13]}  gxh5 {[%clk 0:02:44]} 8. Nh3 {[%clk 0:01:15]}  Rg8+ {[%clk 0:02:41]} 9. Ng5 {[%clk 0:01:14]}  d6 {[%clk 0:02:32]} 10. Qa4+ {[%clk 0:00:52]}  Nc6 {[%clk 0:02:31]} 11. d5 {[%clk 0:00:53]}  Bh3+ {[%clk 0:02:28]} 12. Kg1 {[%clk 0:00:52]}  Bc5+ {[%clk 0:02:21]} 13. e3 {[%clk 0:00:51]} 0-1


[Site "https://www.chess.com"]

[Event "Titled Tuesday Blitz July 18 Late 2023"]
[White "Begmuratov, Alisher"]
[Black "Sos Andreu, Eric"]
[WhiteFideId "14203367"]
[BlackFideId "22247017"]
[WhiteElo "2631"]
[BlackElo "2506"]
[Result "1-0"]
[Round "11"]
[TimeControl "180+2"]
[Date "2023.07.18"]
[WhiteClock "0:01:05"]
[BlackClock "0:00:00"]
[Board "52"]

1. e4 {[%clk 0:03:00]}  c6 {[%clk 0:02:59]} 2. d4 {[%clk 0:02:58]}  d5 {[%clk 0:03:00]} 3. Nc3 {[%clk 0:02:58]}  dxe4 {[%clk 0:02:59]} 4. Bc4 {[%clk 0:02:59]}  Nf6 {[%clk 0:02:54]} 5. f3 {[%clk 0:02:59]}  e5 {[%clk 0:02:34]} 6. dxe5 {[%clk 0:02:52]}  Qxd1+ {[%clk 0:02:34]} 7. Nxd1 {[%clk 0:02:51]}  Nfd7 {[%clk 0:02:32]} 8. f4 {[%clk 0:02:51]}  Nb6 {[%clk 0:02:27]} 9. Bb3 {[%clk 0:02:50]}  f6 {[%clk 0:02:25]} 10. exf6 {[%clk 0:02:49]}  gxf6 {[%clk 0:02:25]} 11. Ne2 {[%clk 0:02:48]}  Na6 {[%clk 0:02:16]} 12. Bd2 {[%clk 0:02:48]}  Bg4 {[%clk 0:02:06]} 13. Bc3 {[%clk 0:02:46]}  Be7 {[%clk 0:01:49]} 14. Ne3 {[%clk 0:02:46]}  Bxe2 {[%clk 0:01:47]} 15. Kxe2 {[%clk 0:02:46]}  O-O-O {[%clk 0:01:41]} 16. Nf5 {[%clk 0:02:45]}  Bb4 {[%clk 0:01:26]} 17. Bxb4 {[%clk 0:02:17]}  Nxb4 {[%clk 0:01:25]} 18. Rad1 {[%clk 0:02:17]}  Kc7 {[%clk 0:01:14]} 19. g3 {[%clk 0:02:15]}  a5 {[%clk 0:01:10]} 20. Ng7 {[%clk 0:02:07]}  Rxd1 {[%clk 0:01:01]} 21. Rxd1 {[%clk 0:02:06]}  a4 {[%clk 0:01:01]} 22. Be6 {[%clk 0:01:54]}  Nxc2 {[%clk 0:00:56]} 23. Bf5 {[%clk 0:01:49]}  Kb8 {[%clk 0:00:36]} 24. Bxe4 {[%clk 0:01:46]}  Nb4 {[%clk 0:00:36]} 25. a3 {[%clk 0:01:46]}  N4d5 {[%clk 0:00:34]} 26. Kf3 {[%clk 0:01:46]}  h5 {[%clk 0:00:31]} 27. h4 {[%clk 0:01:41]}  Kc7 {[%clk 0:00:27]} 28. Ne6+ {[%clk 0:01:31]}  Kd6 {[%clk 0:00:27]} 29. f5 {[%clk 0:01:31]}  Ke5 {[%clk 0:00:21]} 30. Nf4 {[%clk 0:01:29]}  Kd6 {[%clk 0:00:08]} 31. Bxd5 {[%clk 0:01:28]}  cxd5 {[%clk 0:00:09]} 32. Re1 {[%clk 0:01:28]}  Rc8 {[%clk 0:00:04]} 33. Re6+ {[%clk 0:01:27]}  Kd7 {[%clk 0:00:04]} 34. Rxb6 {[%clk 0:01:27]}  Rc2 {[%clk 0:00:02]} 35. Nxh5 {[%clk 0:01:22]}  Kc7 {[%clk 0:00:02]} 36. Rb4 {[%clk 0:01:20]}  d4 {[%clk 0:00:02]} 37. Rxd4 {[%clk 0:01:16]}  Rxb2 {[%clk 0:00:02]} 38. Rxa4 {[%clk 0:01:16]}  Rb3+ {[%clk 0:00:02]} 39. Kg4 {[%clk 0:01:15]}  b5 {[%clk 0:00:02]} 40. Rb4 {[%clk 0:01:15]}  Rxa3 {[%clk 0:00:02]} 41. Rxb5 {[%clk 0:01:14]}  Kd6 {[%clk 0:00:03]} 42. Nxf6 {[%clk 0:01:14]}  Ke7 {[%clk 0:00:03]} 43. Ne4 {[%clk 0:01:13]}  Kf7 {[%clk 0:00:04]} 44. Rb7+ {[%clk 0:01:12]}  Kf8 {[%clk 0:00:03]} 45. f6 {[%clk 0:01:11]}  Ra4 {[%clk 0:00:01]} 46. Kf5 {[%clk 0:01:10]}  Ra5+ {[%clk 0:00:02]} 47. Kg6 {[%clk 0:01:07]}  Ra8 {[%clk 0:00:00]} 48. h5 {[%clk 0:01:05]} 1-0


[Site "https://www.chess.com"]

[Event "Titled Tuesday Blitz July 18 Late 2023"]
[White "Shubenkova, Veronika"]
[Black "Omelja, Artem"]
[WhiteFideId "44124040"]
[BlackFideId "14119846"]
[WhiteElo "2504"]
[BlackElo "2628"]
[Result "1-0"]
[Round "11"]
[TimeControl "180+2"]
[Date "2023.07.18"]
[WhiteClock "0:00:02"]
[BlackClock "0:00:00"]
[Board "53"]

1. e4 {[%clk 0:03:00]}  g5 {[%clk 0:02:55]} 2. d4 {[%clk 0:03:00]}  Bg7 {[%clk 0:02:55]} 3. Bxg5 {[%clk 0:02:59]}  c5 {[%clk 0:02:55]} 4. Be3 {[%clk 0:02:54]}  Qb6 {[%clk 0:02:53]} 5. Bc1 {[%clk 0:02:40]}  cxd4 {[%clk 0:02:50]} 6. Nf3 {[%clk 0:02:40]}  Nc6 {[%clk 0:02:50]} 7. Bd3 {[%clk 0:02:39]}  d6 {[%clk 0:02:50]} 8. Nbd2 {[%clk 0:02:38]}  Bg4 {[%clk 0:02:49]} 9. O-O {[%clk 0:02:38]}  Nf6 {[%clk 0:02:45]} 10. a4 {[%clk 0:02:36]}  Nd7 {[%clk 0:02:45]} 11. Nc4 {[%clk 0:02:36]}  Qc5 {[%clk 0:02:45]} 12. b3 {[%clk 0:02:35]}  Rg8 {[%clk 0:02:37]} 13. h3 {[%clk 0:02:34]}  Bh5 {[%clk 0:02:32]} 14. Ba3 {[%clk 0:02:26]}  Bxf3 {[%clk 0:02:25]} 15. Qxf3 {[%clk 0:02:25]}  Nce5 {[%clk 0:02:24]} 16. Nxe5 {[%clk 0:02:16]}  Nxe5 {[%clk 0:02:24]} 17. Qh5 {[%clk 0:02:12]}  Qc7 {[%clk 0:02:16]} 18. Bb5+ {[%clk 0:02:09]}  Kf8 {[%clk 0:02:05]} 19. Qxh7 {[%clk 0:02:07]}  Qxc2 {[%clk 0:01:55]} 20. f4 {[%clk 0:02:05]}  Ng6 {[%clk 0:01:47]} 21. Qh5 {[%clk 0:01:53]}  d3 {[%clk 0:01:33]} 22. e5 {[%clk 0:01:52]}  Rd8 {[%clk 0:01:08]} 23. Kh1 {[%clk 0:01:31]}  d2 {[%clk 0:00:58]} 24. Be2 {[%clk 0:01:20]}  dxe5 {[%clk 0:00:42]} 25. fxe5 {[%clk 0:01:19]}  Bxe5 {[%clk 0:00:40]} 26. Rad1 {[%clk 0:01:14]}  Qxb3 {[%clk 0:00:38]} 27. Rf3 {[%clk 0:00:59]}  Qd5 {[%clk 0:00:22]} 28. Qh6+ {[%clk 0:00:57]}  Bg7 {[%clk 0:00:21]} 29. Qe3 {[%clk 0:00:44]}  Qe5 {[%clk 0:00:14]} 30. Rxd2 {[%clk 0:00:36]}  Rxd2 {[%clk 0:00:13]} 31. Qxd2 {[%clk 0:00:34]}  Qa1+ {[%clk 0:00:13]} 32. Kh2 {[%clk 0:00:31]}  Be5+ {[%clk 0:00:13]} 33. g3 {[%clk 0:00:30]}  Kg7 {[%clk 0:00:13]} 34. Bc1 {[%clk 0:00:29]}  Rh8 {[%clk 0:00:13]} 35. Bc4 {[%clk 0:00:25]}  f6 {[%clk 0:00:12]} 36. Bd3 {[%clk 0:00:16]}  Qd4 {[%clk 0:00:10]} 37. Qc2 {[%clk 0:00:13]}  Nh4 {[%clk 0:00:09]} 38. Rf1 {[%clk 0:00:08]}  Qd5 {[%clk 0:00:04]} 39. Be4 {[%clk 0:00:05]}  Qd6 {[%clk 0:00:05]} 40. Bf4 {[%clk 0:00:04]}  Bxf4 {[%clk 0:00:05]} 41. Rxf4 {[%clk 0:00:04]}  f5 {[%clk 0:00:05]} 42. Qc3+ {[%clk 0:00:02]}  Qf6 {[%clk 0:00:04]} 43. Qe1 {[%clk 0:00:01]}  Ng6 {[%clk 0:00:04]} 44. Rf1 {[%clk 0:00:01]}  e6 {[%clk 0:00:03]} 45. Bg2 {[%clk 0:00:02]}  Qg5 {[%clk 0:00:00]} 46. Qc3+ {[%clk 0:00:02]} 1-0


[Site "https://www.chess.com"]

[Event "Titled Tuesday Blitz July 18 Late 2023"]
[White "Geivondian, Arman"]
[Black "Shapiro, Viktor"]
[WhiteFideId "24102032"]
[BlackFideId "4175700"]
[WhiteElo "2579"]
[BlackElo "2494"]
[Result "0-1"]
[Round "11"]
[TimeControl "180+2"]
[Date "2023.07.18"]
[WhiteClock "0:02:07"]
[BlackClock "0:00:16"]
[Board "55"]

1. e4 {[%clk 0:03:00]}  e5 {[%clk 0:02:30]} 2. Nf3 {[%clk 0:03:00]}  Nc6 {[%clk 0:02:28]} 3. d4 {[%clk 0:03:01]}  exd4 {[%clk 0:02:28]} 4. Nxd4 {[%clk 0:03:01]}  Bc5 {[%clk 0:02:28]} 5. Nb3 {[%clk 0:03:02]}  Bb6 {[%clk 0:02:26]} 6. Nc3 {[%clk 0:03:03]}  Nge7 {[%clk 0:02:25]} 7. Bg5 {[%clk 0:03:03]}  O-O {[%clk 0:02:23]} 8. Bd3 {[%clk 0:03:02]}  d6 {[%clk 0:02:21]} 9. Qe2 {[%clk 0:03:01]}  a5 {[%clk 0:02:16]} 10. a4 {[%clk 0:03:01]}  Be6 {[%clk 0:02:07]} 11. O-O-O {[%clk 0:03:00]}  Bxb3 {[%clk 0:02:03]} 12. cxb3 {[%clk 0:03:01]}  Nd4 {[%clk 0:02:03]} 13. Qh5 {[%clk 0:03:00]}  Nxb3+ {[%clk 0:02:02]} 14. Kb1 {[%clk 0:03:00]}  Nc5 {[%clk 0:01:48]} 15. Bc2 {[%clk 0:02:59]}  f6 {[%clk 0:01:43]} 16. Be3 {[%clk 0:02:52]}  Qe8 {[%clk 0:01:40]} 17. Qh4 {[%clk 0:02:49]}  Ng6 {[%clk 0:01:39]} 18. Qg3 {[%clk 0:02:49]}  Nd7 {[%clk 0:01:24]} 19. Bb3+ {[%clk 0:02:45]}  Kh8 {[%clk 0:01:24]} 20. Bc1 {[%clk 0:02:45]}  f5 {[%clk 0:01:18]} 21. exf5 {[%clk 0:02:45]}  Rxf5 {[%clk 0:01:18]} 22. Bc2 {[%clk 0:02:43]}  Rxf2 {[%clk 0:01:07]} 23. Rhe1 {[%clk 0:02:43]}  Qf7 {[%clk 0:01:01]} 24. Ne4 {[%clk 0:02:40]}  Rxc2 {[%clk 0:00:51]} 25. Kxc2 {[%clk 0:02:41]}  Nde5 {[%clk 0:00:46]} 26. Kb1 {[%clk 0:02:39]}  h6 {[%clk 0:00:38]} 27. Rf1 {[%clk 0:02:38]}  Qc4 {[%clk 0:00:37]} 28. b3 {[%clk 0:02:34]}  Qxe4+ {[%clk 0:00:36]} 29. Ka1 {[%clk 0:02:31]}  Bd4+ {[%clk 0:00:32]} 30. Bb2 {[%clk 0:02:31]}  Bxb2+ {[%clk 0:00:30]} 31. Kxb2 {[%clk 0:02:32]}  Qb4 {[%clk 0:00:21]} 32. Rc1 {[%clk 0:02:21]}  c6 {[%clk 0:00:19]} 33. Rfd1 {[%clk 0:02:21]}  d5 {[%clk 0:00:18]} 34. Ka2 {[%clk 0:02:20]}  b5 {[%clk 0:00:18]} 35. axb5 {[%clk 0:02:17]}  a4 {[%clk 0:00:18]} 36. Qc3 {[%clk 0:02:16]}  axb3+ {[%clk 0:00:18]} 37. Kb1 {[%clk 0:02:16]}  Qa3 {[%clk 0:00:19]} 38. Qb2 {[%clk 0:02:17]}  Qxb2+ {[%clk 0:00:17]} 39. Kxb2 {[%clk 0:02:18]}  Nc4+ {[%clk 0:00:17]} 40. Kxb3 {[%clk 0:02:18]}  Rb8 {[%clk 0:00:17]} 41. Ra1 {[%clk 0:02:15]}  Rxb5+ {[%clk 0:00:17]} 42. Kc3 {[%clk 0:02:16]}  Kh7 {[%clk 0:00:16]} 43. Ra7 {[%clk 0:02:15]}  Nge5 {[%clk 0:00:17]} 44. Re1 {[%clk 0:02:12]}  c5 {[%clk 0:00:17]} 45. Ra2 {[%clk 0:02:09]}  d4+ {[%clk 0:00:17]} 46. Kc2 {[%clk 0:02:10]}  d3+ {[%clk 0:00:16]} 47. Kc3 {[%clk 0:02:09]}  d2 {[%clk 0:00:16]} 48. Rea1 {[%clk 0:02:09]}  Rb8 {[%clk 0:00:16]} 49. Ra7 {[%clk 0:02:09]}  Rd8 {[%clk 0:00:16]} 50. Rd1 {[%clk 0:02:09]}  Rd3+ {[%clk 0:00:16]} 51. Kc2 {[%clk 0:02:07]}  Ne3+ {[%clk 0:00:16]} 0-1


[Site "https://www.chess.com"]

[Event "Titled Tuesday Blitz July 18 Late 2023"]
[White "Tarhan, Adar"]
[Black "Salazar Farias, Luis German"]
[WhiteFideId "34544712"]
[BlackFideId "3902170"]
[WhiteElo "2564"]
[BlackElo "2490"]
[Result "1-0"]
[Round "11"]
[TimeControl "180+2"]
[Date "2023.07.18"]
[WhiteClock "0:01:30"]
[BlackClock "0:00:00"]
[Board "56"]

1. d4 {[%clk 0:03:00]}  Nf6 {[%clk 0:02:57]} 2. c3 {[%clk 0:02:59]}  d5 {[%clk 0:02:54]} 3. Bf4 {[%clk 0:02:58]}  e6 {[%clk 0:02:55]} 4. e3 {[%clk 0:02:58]}  Bd6 {[%clk 0:02:55]} 5. Nd2 {[%clk 0:02:57]}  c5 {[%clk 0:02:53]} 6. Bg3 {[%clk 0:02:56]}  Qc7 {[%clk 0:02:49]} 7. Ngf3 {[%clk 0:02:51]}  Nbd7 {[%clk 0:02:48]} 8. Bd3 {[%clk 0:02:45]}  e5 {[%clk 0:02:42]} 9. dxe5 {[%clk 0:02:46]}  Nxe5 {[%clk 0:02:41]} 10. Nxe5 {[%clk 0:02:46]}  Bxe5 {[%clk 0:02:42]} 11. Nf3 {[%clk 0:02:41]}  Bxg3 {[%clk 0:02:38]} 12. hxg3 {[%clk 0:02:42]}  Bg4 {[%clk 0:02:36]} 13. Qa4+ {[%clk 0:02:40]}  Bd7 {[%clk 0:02:30]} 14. Qh4 {[%clk 0:02:41]}  O-O-O {[%clk 0:02:24]} 15. O-O-O {[%clk 0:02:38]}  h6 {[%clk 0:02:15]} 16. Qf4 {[%clk 0:02:34]}  Qxf4 {[%clk 0:01:58]} 17. gxf4 {[%clk 0:02:33]}  Bg4 {[%clk 0:01:56]} 18. Be2 {[%clk 0:02:24]}  Ne4 {[%clk 0:01:52]} 19. Rdf1 {[%clk 0:02:22]}  Rhe8 {[%clk 0:01:42]} 20. Nd4 {[%clk 0:02:20]}  Bxe2 {[%clk 0:01:33]} 21. Nxe2 {[%clk 0:02:21]}  Kc7 {[%clk 0:01:25]} 22. g4 {[%clk 0:02:14]}  b5 {[%clk 0:01:23]} 23. Rhg1 {[%clk 0:02:13]}  a5 {[%clk 0:01:23]} 24. g5 {[%clk 0:02:12]}  hxg5 {[%clk 0:01:21]} 25. fxg5 {[%clk 0:02:13]}  g6 {[%clk 0:01:21]} 26. f4 {[%clk 0:02:13]}  Nd6 {[%clk 0:01:19]} 27. Ng3 {[%clk 0:02:06]}  Rxe3 {[%clk 0:01:17]} 28. f5 {[%clk 0:02:07]}  Rde8 {[%clk 0:01:10]} 29. fxg6 {[%clk 0:02:05]}  fxg6 {[%clk 0:01:11]} 30. a3 {[%clk 0:02:00]}  R8e5 {[%clk 0:01:05]} 31. Nh1 {[%clk 0:01:48]}  a4 {[%clk 0:00:49]} 32. Kb1 {[%clk 0:01:46]}  Nc4 {[%clk 0:00:46]} 33. Rf7+ {[%clk 0:01:43]}  Re7 {[%clk 0:00:43]} 34. Rgf1 {[%clk 0:01:35]}  Rxf7 {[%clk 0:00:37]} 35. Rxf7+ {[%clk 0:01:36]}  Kd6 {[%clk 0:00:37]} 36. Nf2 {[%clk 0:01:35]}  Re1+ {[%clk 0:00:31]} 37. Ka2 {[%clk 0:01:33]}  Re2 {[%clk 0:00:31]} 38. Nd3 {[%clk 0:01:33]}  d4 {[%clk 0:00:18]} 39. Rf6+ {[%clk 0:01:32]}  Kd5 {[%clk 0:00:18]} 40. Nf4+ {[%clk 0:01:31]}  Ke4 {[%clk 0:00:16]} 41. Nxe2 {[%clk 0:01:32]}  d3 {[%clk 0:00:17]} 42. Ng3+ {[%clk 0:01:31]}  Ke5 {[%clk 0:00:00]} 43. Nf1 {[%clk 0:01:30]} 1-0


[Site "https://www.chess.com"]

[Event "Titled Tuesday Blitz July 18 Late 2023"]
[White "Ambartsumova, Karina"]
[Black "Rodriguez Fontecha, Marcos"]
[WhiteFideId "4166299"]
[BlackFideId "2256576"]
[WhiteElo "2553"]
[BlackElo "2481"]
[Result "1-0"]
[Round "11"]
[TimeControl "180+2"]
[Date "2023.07.18"]
[WhiteClock "0:01:16"]
[BlackClock "0:00:27"]
[Board "59"]

1. Nf3 {[%clk 0:03:00]}  Nf6 {[%clk 0:02:59]} 2. c4 {[%clk 0:03:00]}  d6 {[%clk 0:02:59]} 3. d4 {[%clk 0:03:00]}  g6 {[%clk 0:02:56]} 4. g3 {[%clk 0:03:00]}  Bg7 {[%clk 0:02:55]} 5. Bg2 {[%clk 0:03:00]}  Bf5 {[%clk 0:02:55]} 6. Nc3 {[%clk 0:02:59]}  O-O {[%clk 0:02:55]} 7. Nh4 {[%clk 0:02:52]}  Bc8 {[%clk 0:02:54]} 8. O-O {[%clk 0:02:52]}  Nc6 {[%clk 0:02:54]} 9. Nf3 {[%clk 0:02:48]}  Bg4 {[%clk 0:02:46]} 10. h3 {[%clk 0:02:37]}  Bxf3 {[%clk 0:02:45]} 11. Bxf3 {[%clk 0:02:38]}  e5 {[%clk 0:02:31]} 12. d5 {[%clk 0:02:35]}  Ne7 {[%clk 0:02:29]} 13. e4 {[%clk 0:02:36]}  Nd7 {[%clk 0:02:29]} 14. Bg2 {[%clk 0:02:33]}  a5 {[%clk 0:02:27]} 15. Be3 {[%clk 0:02:23]}  f5 {[%clk 0:02:26]} 16. Qd2 {[%clk 0:02:20]}  f4 {[%clk 0:02:13]} 17. gxf4 {[%clk 0:02:17]}  exf4 {[%clk 0:02:13]} 18. Bxf4 {[%clk 0:02:18]}  Ne5 {[%clk 0:02:13]} 19. Bxe5 {[%clk 0:02:00]}  Bxe5 {[%clk 0:02:12]} 20. f4 {[%clk 0:02:00]}  Bg7 {[%clk 0:02:09]} 21. Rae1 {[%clk 0:01:56]}  Qd7 {[%clk 0:02:04]} 22. e5 {[%clk 0:01:52]}  Nf5 {[%clk 0:02:04]} 23. e6 {[%clk 0:01:49]}  Qe7 {[%clk 0:02:03]} 24. Kh2 {[%clk 0:01:41]}  Qh4 {[%clk 0:01:54]} 25. Qf2 {[%clk 0:01:35]}  Qh6 {[%clk 0:01:41]} 26. Ne4 {[%clk 0:01:27]}  Nh4 {[%clk 0:01:30]} 27. Ng5 {[%clk 0:01:21]}  Be5 {[%clk 0:00:27]} 28. Nf7 {[%clk 0:01:16]} 1-0


[Site "https://www.chess.com"]

[Event "Titled Tuesday Blitz July 18 Late 2023"]
[White "Santos Flores, Alberto"]
[Black "Eggleston, Thomas A"]
[WhiteFideId "3601234"]
[BlackFideId "412139"]
[WhiteElo "2534"]
[BlackElo "2381"]
[Result "1-0"]
[Round "11"]
[TimeControl "180+2"]
[Date "2023.07.18"]
[WhiteClock "0:01:41"]
[BlackClock "0:00:39"]
[Board "62"]

1. e4 {[%clk 0:03:00]}  e6 {[%clk 0:03:00]} 2. d4 {[%clk 0:02:58]}  d5 {[%clk 0:03:00]} 3. Nc3 {[%clk 0:02:58]}  Nf6 {[%clk 0:03:00]} 4. e5 {[%clk 0:02:58]}  Nfd7 {[%clk 0:02:59]} 5. Nce2 {[%clk 0:02:58]}  c5 {[%clk 0:02:59]} 6. c3 {[%clk 0:02:59]}  Nc6 {[%clk 0:02:59]} 7. Nf3 {[%clk 0:02:59]}  Be7 {[%clk 0:02:56]} 8. a3 {[%clk 0:02:58]}  g5 {[%clk 0:02:51]} 9. Be3 {[%clk 0:02:49]}  g4 {[%clk 0:02:50]} 10. Nd2 {[%clk 0:02:48]}  Bg5 {[%clk 0:02:32]} 11. b4 {[%clk 0:02:40]}  cxd4 {[%clk 0:02:25]} 12. cxd4 {[%clk 0:02:40]}  Bxe3 {[%clk 0:02:24]} 13. fxe3 {[%clk 0:02:41]}  Qg5 {[%clk 0:02:21]} 14. Nf4 {[%clk 0:02:41]}  Nf8 {[%clk 0:01:57]} 15. Nb3 {[%clk 0:02:32]}  Ng6 {[%clk 0:01:47]} 16. g3 {[%clk 0:02:32]}  b6 {[%clk 0:01:37]} 17. Bd3 {[%clk 0:02:23]}  Bd7 {[%clk 0:01:30]} 18. O-O {[%clk 0:02:22]}  O-O {[%clk 0:01:06]} 19. Rf2 {[%clk 0:01:58]}  Nce7 {[%clk 0:01:05]} 20. Rc1 {[%clk 0:01:47]}  Rac8 {[%clk 0:01:02]} 21. Rfc2 {[%clk 0:01:47]}  Ba4 {[%clk 0:00:56]} 22. Rxc8 {[%clk 0:01:46]}  Rxc8 {[%clk 0:00:54]} 23. Rxc8+ {[%clk 0:01:46]}  Nxc8 {[%clk 0:00:53]} 24. Qc2 {[%clk 0:01:44]}  Qd8 {[%clk 0:00:52]} 25. Qc3 {[%clk 0:01:44]}  Bxb3 {[%clk 0:00:49]} 26. Qxb3 {[%clk 0:01:43]}  Qc7 {[%clk 0:00:45]} 27. Qc2 {[%clk 0:01:43]}  Nce7 {[%clk 0:00:39]} 28. Qxc7 {[%clk 0:01:41]} 1-0


[Site "https://www.chess.com"]

[Event "Titled Tuesday Blitz July 18 Late 2023"]
[White "ChessSG1"]
[Black "vishwa_vijeta"]
[WhiteElo "2330"]
[BlackElo "2511"]
[Result "0-1"]
[Round "11"]
[TimeControl "180+2"]
[Date "2023.07.18"]
[WhiteClock "0:00:00"]
[BlackClock "0:01:00"]
[Board "67"]

1. Nf3 {[%clk 0:02:56]}  c5 {[%clk 0:02:59]} 2. c4 {[%clk 0:02:57]}  Nc6 {[%clk 0:02:54]} 3. Nc3 {[%clk 0:02:51]}  g6 {[%clk 0:02:55]} 4. e3 {[%clk 0:02:52]}  e6 {[%clk 0:02:53]} 5. d4 {[%clk 0:02:50]}  cxd4 {[%clk 0:02:54]} 6. exd4 {[%clk 0:02:51]}  d5 {[%clk 0:02:54]} 7. Bg5 {[%clk 0:02:47]}  Be7 {[%clk 0:02:54]} 8. Bxe7 {[%clk 0:02:46]}  Ngxe7 {[%clk 0:02:55]} 9. Be2 {[%clk 0:02:44]}  O-O {[%clk 0:02:50]} 10. O-O {[%clk 0:02:43]}  b6 {[%clk 0:02:49]} 11. Rc1 {[%clk 0:02:40]}  Bb7 {[%clk 0:02:48]} 12. Re1 {[%clk 0:02:38]}  Qd7 {[%clk 0:02:46]} 13. Qd2 {[%clk 0:02:25]}  Rad8 {[%clk 0:02:44]} 14. cxd5 {[%clk 0:02:19]}  Nxd5 {[%clk 0:02:38]} 15. Qh6 {[%clk 0:02:14]}  Nf6 {[%clk 0:02:16]} 16. Ng5 {[%clk 0:02:09]}  Nxd4 {[%clk 0:02:04]} 17. Bd3 {[%clk 0:01:30]}  Nf3+ {[%clk 0:02:01]} 18. gxf3 {[%clk 0:01:24]}  Qxd3 {[%clk 0:02:01]} 19. Nce4 {[%clk 0:01:17]}  Bxe4 {[%clk 0:02:00]} 20. fxe4 {[%clk 0:01:18]}  e5 {[%clk 0:01:55]} 21. Re3 {[%clk 0:01:00]}  Qd2 {[%clk 0:01:51]} 22. Rc6 {[%clk 0:00:57]}  Qd1+ {[%clk 0:01:50]} 23. Kg2 {[%clk 0:00:57]}  Qg4+ {[%clk 0:01:45]} 24. Rg3 {[%clk 0:00:56]}  Qh5 {[%clk 0:01:46]} 25. Rh3 {[%clk 0:00:31]}  Qxh6 {[%clk 0:01:33]} 26. Rxh6 {[%clk 0:00:32]}  Kg7 {[%clk 0:01:33]} 27. Rh3 {[%clk 0:00:33]}  h6 {[%clk 0:01:28]} 28. Nf3 {[%clk 0:00:24]}  Rfe8 {[%clk 0:01:27]} 29. Ne1 {[%clk 0:00:17]}  Nxe4 {[%clk 0:01:27]} 30. Rc7 {[%clk 0:00:14]}  Rd2 {[%clk 0:01:25]} 31. Nd3 {[%clk 0:00:14]}  Rd8 {[%clk 0:01:25]} 32. Re3 {[%clk 0:00:05]}  R8xd3 {[%clk 0:01:04]} 33. Rxe4 {[%clk 0:00:06]}  Rxb2 {[%clk 0:01:03]} 34. Rxe5 {[%clk 0:00:06]}  Rdd2 {[%clk 0:01:03]} 35. Ree7 {[%clk 0:00:06]}  Rxf2+ {[%clk 0:01:03]} 36. Kg3 {[%clk 0:00:07]}  Rg2+ {[%clk 0:01:03]} 37. Kh3 {[%clk 0:00:07]}  Rxh2+ {[%clk 0:01:03]} 38. Kg3 {[%clk 0:00:08]}  Rhg2+ {[%clk 0:01:01]} 39. Kh3 {[%clk 0:00:08]}  Rgf2 {[%clk 0:01:01]} 40. Rxa7 {[%clk 0:00:08]}  Rf5 {[%clk 0:01:02]} 41. a4 {[%clk 0:00:06]}  Rb3+ {[%clk 0:01:00]} 42. Kg2 {[%clk 0:00:06]}  h5 {[%clk 0:01:00]} 43. Re2 {[%clk 0:00:00]}  h4 {[%clk 0:01:00]} 0-1


[Site "https://www.chess.com"]